bitfinex-derivatives/quotes_SOLF0:USTF0_20250224
["timestamp","ask_amount","ask_price","bid_price","bid_amount"]
[1740410928560,6.5744,152.1,152.09,9.02e-05]
[1740410929455,10.98730478,152.1,152.09,9.02e-05]
[1740410930753,6.5744,152.1,152.09,9.02e-05]
[1740410931659,10.98772055,152.1,152.09,9.02e-05]
[1740410932160,13.085697,152.13,152.09,9.02e-05]
[1740410932351,0.045697,152.13,152.09,9.02e-05]
[1740410932557,4.42255385,152.12,152.09,9.02e-05]
[1740410932751,6.5744,152.1,152.09,9.02e-05]
[1740410933362,10.99695385,152.1,152.09,9.02e-05]
[1740410934256,17.87361434,152.1,152.09,9.02e-05]
[1740410935252,10.99695385,152.1,152.09,9.02e-05]
[1740410936862,12.64234173,152.1,152.09,9.02e-05]
[1740410937056,12.64226991,152.1,152.09,9.02e-05]
[1740410938063,12.64229129,152.1,152.09,9.02e-05]
[1740410940467,0.045697,152.13,152.09,9.02e-05]
[1740410940663,1.64487802,152.12,152.09,9.02e-05]
[1740410940863,1.64487802,152.11,152.09,9.02e-05]
[1740410941166,8.21927802,152.1,152.09,9.02e-05]
[1740410941765,0.045697,152.13,152.09,9.02e-05]
[1740410942361,6.5744,152.1,152.09,9.02e-05]
[1740410943064,6.5741,152.11,152.09,9.02e-05]
[1740410943265,0.045697,152.13,152.09,9.02e-05]
[1740410943659,6.5739,152.12,152.09,9.02e-05]
[1740410943864,0.045697,152.13,152.09,9.02e-05]
[1740410944162,13.08,152.29,152.09,9.02e-05]
[1740410944163,211.5634,152.29,152.09,9.02e-05]
[1740410944363,20.5634,152.29,152.09,9.02e-05]
[1740410944563,16.8409,152.29,152.08,172.2]
[1740410945267,0.04471239,152.2,152.17,0.0457872]
[1740410945465,0.04471239,152.2,152.17,8.72e-05]
[1740410945664,6.5749,152.09,152.08,172.2]
[1740410946559,6.62115917,152.1,152.08,172.2]
[1740410946765,191.0,152.18,152.08,172.2]
[1740410946965,0.04593232,152.11,152.08,172.2]
[1740410947160,6.5748,152.1,152.08,172.2]
[1740410947463,0.04165868,152.11,152.08,172.2]
[1740410948360,0.04165868,152.11,151.98,172.16]
[1740410948562,204.12,152.1,151.99,172.16]
[1740410948871,0.04583409,152.06,151.94,172.16]
[1740410949268,191.0,152.05,151.85,172.16]
[1740410949467,0.04812106,152.02,151.85,172.16]
[1740410949664,0.04768045,151.95,151.85,172.16]
[1740410949867,13.12,152.01,151.93,6.124e-05]
[1740410950268,0.0474893,151.99,151.93,6.124e-05]
[1740410950473,191.0,151.98,151.9,42.02819144]
[1740410950776,13.12,152.01,151.88,102.4945488]
[1740410950777,0.04556236,151.96,151.88,102.4945488]
[1740410950967,6.5827,151.91,151.88,102.4945488]
[1740410951172,13.14,151.91,151.88,102.4945488]
[1740410951368,13.18372727,151.91,151.88,90.0825488]
[1740410951671,191.0,151.9,151.86,148.21504801]
[1740410951872,191.0,151.9,151.86,136.32304801]
[1740410952068,13.18372727,151.91,151.86,97.76824801]
[1740410952069,6.5844,151.87,151.86,97.76824801]
[1740410952373,191.0,151.89,151.86,86.10564801]
[1740410952569,13.18372727,151.91,151.86,86.10564801]
[1740410952769,0.04372727,151.91,151.86,86.10564801]
[1740410953074,0.04372727,151.91,151.87,3.8548]
[1740410953270,0.04372727,151.91,151.86,86.10564801]
[1740410953772,0.04372727,151.91,151.84,3.7982]
[1740410953969,0.04372727,151.91,151.8,3.8548]
[1740410954171,221.71,151.96,151.69,7.9062]
[1740410954369,0.04348987,151.87,151.69,7.9062]
[1740410954570,13.2,151.86,151.69,7.9062]
[1740410954869,0.04195159,151.8,151.7,6.5917]
[1740410955067,13.2,151.86,151.69,7.9062]
[1740410956276,13.2,151.86,151.76,0.0414582]
[1740410956277,0.04976239,151.79,151.76,0.0414582]
[1740410956470,13.2,151.86,151.76,0.0414582]
[1740410956774,191.0,151.94,151.69,7.9062]
[1740410956974,14.49622244,151.95,151.69,27.5562]
[1740410957176,13.2,151.97,151.69,27.5562]
[1740410957470,191.0,151.96,151.69,7.9062]
[1740410957675,0.04808531,151.85,151.81,0.04909915]
[1740410957870,13.2,151.97,151.81,172.40909915]
[1740410958079,13.2,151.97,151.82,4.1212]
[1740410958871,0.0500519,151.91,151.88,0.04758742]
[1740410963981,0.0500519,151.91,151.88,0.00037919]
[1740410964777,191.0,151.96,151.88,0.00037919]
[1740410964979,81.93597818,152.0,151.88,0.00037919]
[1740410965179,81.93597818,152.0,151.88,6.5836]
[1740410965474,81.93597818,152.0,151.85,172.4]
[1740410965675,81.93597818,152.0,151.91,6.5823]
[1740410965881,0.04545057,151.97,151.94,0.0498071]
[1740410966681,67.2180155,152.01,151.94,0.0498071]
[1740410967377,67.2180155,152.01,151.96,6.5805]
[1740410967778,0.04934635,152.0,151.95,3.789]
[1740410968883,0.04934635,152.0,151.99,6.5792]
[1740410969181,0.04934635,152.0,151.95,3.789]
[1740410969375,0.04934635,152.0,151.98,0.04884455]
[1740410970784,0.04934635,152.0,151.86,7.683]
[1740410971078,191.0,152.05,151.86,7.683]
[1740410971276,208.55148743,152.04,151.86,7.683]
[1740410971474,207.56243768,152.03,151.86,7.683]
[1740410971675,191.0,152.02,151.86,7.683]
[1740410971885,191.0,152.01,151.86,7.683]
[1740410972081,0.04284362,151.96,151.92,0.04629735]
[1740410972380,13.08,151.95,151.86,3.8296]
[1740410972683,204.08,151.95,151.81,8.0785]
[1740410972881,13.08,151.95,151.81,8.0785]
[1740410973085,191.0,151.94,151.81,8.0785]
[1740410973289,191.0,151.93,151.81,8.0785]
[1740410973486,0.04625152,151.9,151.86,0.04248864]
[1740410974186,0.04625152,151.9,151.8,10.0]
[1740410974380,191.0,151.89,151.76,3.9534]
[1740410974584,191.0,151.88,151.7,7.7681]
[1740410974778,16.55446254,151.87,151.7,7.7681]
[1740410974982,13.04,151.86,151.7,7.7681]
[1740410975188,0.04329497,151.8,151.77,0.04547324]
[1740410976289,191.0,151.79,151.65,3.9534]
[1740410977380,0.04487871,151.74,151.65,3.9534]
[1740410978182,13.06,151.83,151.65,3.9534]
[1740410978892,67.2180155,151.78,151.65,3.9534]
[1740410979293,5.289e-05,151.73,151.7,0.04603038]
[1740410979490,37.13736839,151.78,151.77,6.5887]
[1740410979694,0.67116839,151.78,151.77,6.5887]
[1740410979894,97.17339277,151.8,151.72,172.48]
[1740410980292,79.35389277,151.8,151.72,172.48]
[1740410980692,79.35389277,151.8,151.79,6.5879]
[1740410980892,161.95565462,151.85,151.72,172.48]
[1740410981087,0.04572562,151.81,151.79,6.5877]
[1740410981286,161.95565462,151.85,151.78,0.04223777]
[1740410981691,161.95565462,151.85,151.79,6.5877]
[1740410981999,161.95565462,151.85,151.78,0.04223777]
[1740410982587,0.04722396,151.83,151.78,0.04223777]
[1740410982998,13.02,151.82,151.65,3.9534]
[1740410983295,4.17280951,151.81,151.67,13.1861]
[1740410983499,4.17280951,151.81,151.8,6.5874]
[1740410983698,25.70600389,151.96,151.79,172.48]
[1740410984000,6.5823,151.92,151.79,172.48]
[1740410984299,2.962e-05,151.87,151.84,0.04270912]
[1740410984597,4.17521798,151.95,151.79,172.48]
[1740410984797,1.798e-05,151.86,151.79,172.48]
[1740410985201,15.31211324,151.98,151.91,6.5824]
[1740410985399,15.31211324,151.98,151.79,364.48]
[1740410985698,16.9691,152.02,151.89,6.5832]
[1740410985900,0.04508864,151.9,151.89,6.5832]
[1740410986200,0.04575463,151.91,151.88,0.04869796]
[1740410986399,3.9376,152.0,151.8,176.3908]
[1740410986598,0.04335117,151.91,151.88,0.04895467]
[1740410986803,3.9376,152.0,151.81,3.8201]
[1740410987100,0.04479067,151.91,151.88,0.04777687]
[1740410987297,13.24,151.9,151.8,172.48]
[1740410987593,13.24,151.9,151.83,6.5861]
[1740410987795,6.5817,151.94,151.8,172.48]
[1740410988000,13.22,151.96,151.8,172.48]
[1740410988500,0.04826603,151.9,151.86,0.04428432]
[1740410988700,0.04826603,151.9,151.83,6.5861]
[1740410988899,6.5817,151.94,151.86,0.0416312]
[1740410989098,0.04279328,151.88,151.86,0.0416312]
[1740410989294,6.5841,151.88,151.8,172.48]
[1740410989501,6.5841,151.88,151.85,0.04491693]
[1740410989703,13.22,151.96,151.85,0.04491693]
[1740410989895,13.22,151.96,151.8,172.48]
[1740410990198,0.04214244,151.92,151.89,0.04681826]
[1740410990397,0.04214244,151.92,151.8,172.48]
[1740410990598,6.584,151.88,151.8,172.48]
[1740410990798,12.40907241,151.94,151.8,172.48]
[1740410991099,6.583,151.91,151.8,172.48]
[1740410991496,12.40907241,151.94,151.84,0.05006168]
[1740410991696,6.5823,151.92,151.8,179.067]
[1740410991897,0.04983551,151.91,151.87,0.04985838]
[1740410992094,12.40907241,151.94,151.87,0.04985838]
[1740410992294,0.04648957,151.91,151.8,172.48]
[1740410992490,3.77,151.91,151.8,172.48]
[1740410993496,0.04766859,151.87,151.84,0.04414678]
[1740410996494,0.04766859,151.87,151.84,6.62974678]
[1740410996695,0.04766859,151.87,151.84,0.04414678]
[1740410997102,0.04766859,151.87,151.74,3.8201]
[1740410997103,13.08,151.86,151.74,3.8201]
[1740410997401,17.22785412,151.86,151.74,3.8201]
[1740410997607,4.14785412,151.85,151.74,3.8201]
[1740410997801,4.14785412,151.85,151.8,6.5871]
[1740410997997,4.14785412,151.85,151.74,3.8201]
[1740410998304,0.04637592,151.84,151.74,3.8201]
[1740410998506,4.14785412,151.85,151.74,3.8201]
[1740410999007,7.308e-05,151.81,151.74,3.8201]
[1740410999205,2.72e-05,151.85,151.84,6.5857]
[1740410999706,4.0244,151.97,151.84,172.46]
[1740410999904,4.0244,151.97,151.85,3.7691]
[1740411000107,4.0244,151.97,151.85,7.8758]
[1740411000303,4.7e-06,151.93,151.89,0.04744046]
[1740411000811,4.7e-06,151.93,151.92,6.5822]
[1740411001003,73.74910362,151.98,151.89,192.04744046]
[1740411001203,147.54225824,151.99,151.89,192.04744046]
[1740411001403,132.54905824,151.99,151.89,192.0]
[1740411001803,132.54905824,151.99,151.92,6.5822]
[1740411002017,132.54905824,151.99,151.92,192.0]
[1740411002204,3.8181,152.1,151.92,192.0]
[1740411002205,67.83228007,152.06,151.94,0.04227836]
[1740411002406,67.83228007,152.06,151.94,205.06]
[1740411002709,67.83228007,152.06,151.95,1.31622244]
[1740411002902,67.83228007,152.06,151.96,192.07]
[1740411003108,67.83228007,152.06,151.96,172.42]
[1740411003315,0.0479523,152.03,151.99,0.04350547]
[1740411011313,0.0479523,152.03,151.95,172.42]
[1740411011622,0.0479523,152.03,151.85,172.3]
[1740411011917,191.0,152.07,151.85,172.3]
[1740411012120,192.31527028,152.06,151.85,172.3]
[1740411012319,193.30209361,152.05,151.85,172.3]
[1740411012617,0.04664824,151.97,151.85,172.3]
[1740411012815,13.0,151.96,151.85,172.3]
[1740411013210,191.0,151.95,151.76,172.3]
[1740411013617,0.04706963,151.87,151.84,0.04346542]
[1740411013819,195.038,151.94,151.76,172.3]
[1740411014014,0.04936548,151.87,151.84,0.04882252]
[1740411014218,191.0,152.01,151.8,12.98]
[1740411014419,6.5787,152.01,151.8,206.29752305]
[1740411014716,12.98,152.02,151.8,206.29752305]
[1740411015418,7.828,152.03,151.89,0.04206863]
[1740411015620,7.828,152.03,151.9,172.34]
[1740411016823,0.04714071,151.98,151.95,0.05010355]
[1740411021021,0.04714071,151.98,151.97,6.5801]
[1740411021213,0.04714071,151.98,151.95,0.05010355]
[1740411021419,191.0,152.21,151.95,205.03010355]
[1740411021619,4.0882,152.16,151.95,32.63]
[1740411021814,4.0882,152.16,151.96,1.31613582]
[1740411022122,3.81,152.2,151.96,1.31613582]
[1740411022317,3.904,152.21,151.96,1.31613582]
[1740411022719,0.04885726,152.1,152.07,0.05036404]
[1740411022922,12.96,152.17,151.97,173.46834796]
[1740411023321,6.5756,152.08,152.07,0.04997984]
[1740411023516,0.04624757,152.1,151.97,172.26]
[1740411023719,4.0882,152.09,151.97,172.26]
[1740411023915,6.5778,152.03,151.97,172.26]
[1740411024125,17.0482,152.09,151.97,172.26]
[1740411024317,12.96,152.15,151.97,172.26]
[1740411024518,17.0026,152.15,151.97,172.26]
[1740411024821,0.04580568,152.08,152.04,1.167e-05]
[1740411025028,0.04580568,152.08,151.97,172.26]
[1740411025224,4.0426,152.15,151.97,172.26]
[1740411025430,17.0026,152.15,151.97,172.26]
[1740411025923,0.04822878,152.08,152.04,4.409e-05]
[1740411026128,6.5793,151.99,151.97,172.26]
[1740411026426,12.96,152.05,151.97,172.26]
[1740411026624,6.5796,151.98,151.97,172.26]
[1740411026927,17.0026,152.04,151.94,8.98064046]
[1740411027130,0.04682691,151.99,151.93,5.33820104]
[1740411027327,0.04682691,151.99,151.86,9.00386111]
[1740411027628,13.21300396,152.02,151.86,9.00386111]
[1740411027823,197.58473056,152.01,151.86,9.00386111]
[1740411028017,23.75145203,152.0,151.86,9.00386111]
[1740411028217,5.26902765,151.99,151.86,9.00386111]
[1740411028423,18.48242438,152.0,151.86,9.00386111]
[1740411028424,6.5841,151.88,151.86,9.00386111]
[1740411028625,1.64690332,151.87,151.86,9.00386111]
[1740411028825,1.64690332,151.88,151.86,9.00386111]
[1740411029124,12.98,151.95,151.86,9.00386111]
[1740411029325,8.48708738,151.94,151.86,13.11206111]
[1740411029526,1.64670557,151.93,151.86,13.11206111]
[1740411029728,4.20565289,151.94,151.86,4.1082]
[1740411029927,12.98,152.03,151.86,4.1082]
[1740411030124,6.5786,152.01,151.87,6.5842]
[1740411030433,0.04483932,151.96,151.93,0.04888094]
[1740411030627,0.04483932,151.96,151.88,172.32]
[1740411030628,4.20593362,152.0,151.88,172.32]
[1740411031132,3.7495,152.06,151.88,172.32]
[1740411031327,10.85581058,152.05,151.92,6.5818]
[1740411031527,4.27911058,152.04,151.92,6.5818]
[1740411031831,0.04828032,152.0,151.96,0.04369042]
[1740411032030,1.64581176,151.99,151.96,0.04369042]
[1740411032231,5.85231581,151.98,151.96,0.04369042]
[1740411032428,1.64581176,151.97,151.96,0.04369042]
[1740411032927,1.6460676,151.97,151.96,0.04369042]
[1740411033135,4.28003806,151.97,151.96,0.04369042]
[1740411033341,0.04828032,152.0,151.96,0.04369042]
[1740411033542,1.64599252,151.99,151.96,0.04369042]
[1740411033741,0.04828032,152.0,151.96,0.04369042]
[1740411034142,1.64583284,151.99,151.96,0.04369042]
[1740411034341,4.27949592,151.98,151.96,0.04369042]
[1740411034638,4.28033453,151.97,151.96,0.04369042]
[1740411035036,4.19805296,151.97,151.96,0.04369042]
[1740411035439,12.42439411,151.97,151.88,172.32]
[1740411035640,4.19805296,151.96,151.88,172.32]
[1740411036537,0.04532591,151.94,151.9,0.04191753]
[1740411036740,4.19805296,152.03,151.9,0.04191753]
[1740411036936,1.64582364,152.02,151.88,172.32]
[1740411037142,4.19805296,152.03,151.88,185.3]
[1740411037335,4.19805296,152.01,151.88,185.3]
[1740411037541,4.19805296,152.01,151.88,377.3]
[1740411037942,16.59187261,152.12,151.93,0.04410746]
[1740411038239,4.20353185,152.04,151.93,211.65]
[1740411038433,12.59777261,152.12,151.94,1.20942493]
[1740411038638,12.59777261,152.12,151.94,193.20942493]
[1740411038939,8.073,152.19,151.95,1.20942493]
[1740411039135,0.04754575,152.05,152.01,0.04507769]
[1740411039343,6.5745,152.1,152.04,6.577]
[1740411039544,0.04729132,152.05,152.01,172.32704084]
[1740411039738,191.0,152.18,152.01,172.28]
[1740411039939,1.6449043,152.17,152.01,172.32793318]
[1740411040144,6.65e-06,152.05,152.01,172.28]
[1740411040443,6.571,152.18,152.12,6.5731]
[1740411040644,1.64420903,152.17,152.01,364.28]
[1740411040844,6.571,152.18,152.09,6.5749]
[1740411041035,8.073,152.19,152.01,364.28]
[1740411041342,0.04526314,152.15,152.12,0.04764473]
[1740411041539,24.619,152.26,152.13,172.26]
[1740411041735,0.04561965,152.15,151.78,33.81576385]
[1740411041942,207.29847622,152.14,151.85,385.79031001]
[1740411042141,24.62414292,152.13,151.9,6.583]
[1740411042338,1.64389755,152.12,151.85,385.79031001]
[1740411042535,2.95873549,152.11,151.85,385.79031001]
[1740411042743,2.95882194,152.1,151.85,385.79031001]
[1740411042945,6.11280192,152.02,151.98,0.04918612]
[1740411043144,2.63355612,152.01,151.85,385.79031001]
[1740411043342,1.50756733,151.96,151.85,385.79031001]
[1740411043645,6.06715616,152.04,151.91,0.04909938]
[1740411043840,6.06715616,152.05,151.91,0.04909938]
[1740411044046,0.04346929,151.99,151.9,13.36]
[1740411044241,0.04346929,151.99,151.96,0.04462016]
[1740411044541,0.04346929,151.99,151.97,172.28]
[1740411045345,3.8651,152.11,151.97,172.28]
[1740411045941,6.5757,152.08,151.97,172.28]
[1740411046551,0.0431642,152.04,152.01,0.04475077]
[1740411046744,3.8651,152.11,151.97,172.28]
[1740411046945,0.04629996,152.04,152.01,0.04573126]
[1740411047248,3.8651,152.11,151.97,172.28]
[1740411047448,0.05050212,152.04,152.01,0.04315276]
[1740411047844,3.8651,152.11,151.97,172.28]
[1740411048043,6.5775,152.03,152.01,0.04147941]
[1740411048244,3.8651,152.11,151.97,172.28]
[1740411048440,3.8651,152.11,152.0,0.04701136]
[1740411048441,0.04795185,152.04,152.0,0.04701136]
[1740411048641,0.04795185,152.04,151.97,172.28]
[1740411048949,0.04795185,152.04,152.0,0.04532723]
[1740411049845,3.8674,152.13,152.0,0.04532723]
[1740411050044,3.8674,152.13,151.97,172.28]
[1740411050251,7.8014,152.12,151.97,172.28]
[1740411050749,198.8014,152.12,151.97,172.28]
[1740411051645,6.577,152.04,152.03,0.04698738]
[1740411052246,6.5789,152.0,151.97,172.28]
[1740411052546,12.50646095,152.11,151.97,172.28]
[1740411052753,12.50659751,152.11,151.97,172.28]
[1740411053045,198.8014,152.12,151.97,172.28]
[1740411053246,6.5783,152.02,151.97,172.28]
[1740411053552,0.05054785,152.06,152.03,0.04646896]
[1740411053754,191.0,152.11,151.97,172.28]
[1740411053948,6.5775,152.03,152.02,3.127e-05]
[1740411060154,6.5771,152.04,152.02,3.127e-05]
[1740411060349,0.04226691,152.06,152.02,3.127e-05]
[1740411060554,6.61856691,152.06,152.02,3.127e-05]
[1740411060750,0.04226691,152.06,152.02,3.127e-05]
[1740411061448,101.03940314,152.18,152.03,13.12]
[1740411061655,67.93216624,152.18,152.03,205.12]
[1740411061849,73.85381561,152.19,152.04,1.20770923]
[1740411062158,63.78891561,152.19,152.05,1.31535679]
[1740411062458,63.78891561,152.19,152.06,32.93]
[1740411062655,0.04988591,152.14,152.1,0.04465705]
[1740411062858,0.04988591,152.14,152.11,172.24]
[1740411063555,0.04988591,152.14,152.13,179.38507975]
[1740411063760,11.64,152.28,152.13,179.38507975]
[1740411063958,65.74,152.18,152.13,179.38507975]
[1740411064159,65.74,152.2,152.13,179.38507975]
[1740411064358,65.74,152.21,152.13,179.38507975]
[1740411064562,65.74,152.15,152.13,179.38507975]
[1740411064757,65.74,152.15,152.13,157.50257975]
[1740411064758,65.74,152.14,152.13,157.50257975]
[1740411064958,65.65111954,152.14,152.02,172.24]
[1740411065155,65.65111954,152.07,151.96,3.9455]
[1740411065460,65.65111954,152.06,151.96,3.9455]
[1740411065763,6.577,152.04,151.96,3.9455]
[1740411065963,65.65111954,152.07,151.96,3.9455]
[1740411066159,0.04589733,152.02,152.0,215.32737484]
[1740411066357,0.04589733,152.02,152.0,191.87777484]
[1740411066558,65.65111954,152.01,152.0,185.67477484]
[1740411066959,65.65111954,152.01,152.0,169.64150282]
[1740411067155,0.04902071,152.03,152.0,169.64150282]
[1740411067364,3.8488,152.13,152.0,169.64150282]
[1740411067564,95.23084423,152.26,152.0,169.64150282]
[1740411067865,65.65111954,152.12,152.0,169.64150282]
[1740411068062,65.65111954,152.16,152.0,189.29150282]
[1740411068262,65.65111954,152.21,152.0,381.29150282]
[1740411068463,65.65111954,152.23,152.01,1.31570291]
[1740411068663,65.65111954,152.19,152.02,33.11]
[1740411068867,0.04986659,152.14,152.1,0.04636773]
[1740411069065,65.65111954,152.22,152.1,172.26636773]
[1740411069268,4.0806,152.3,152.11,4.018]
[1740411069565,13.46,152.31,152.11,4.018]
[1740411069767,65.65111954,152.15,152.03,3.9687]
[1740411069961,65.65111954,152.13,152.03,3.9687]
[1740411070164,0.04400263,152.11,152.07,0.04914384]
[1740411070564,3.8595,152.2,152.03,3.9687]
[1740411070766,3.8595,152.2,152.01,173.53570291]
[1740411070767,0.04251482,152.11,152.07,0.04779682]
[1740411070964,0.04251482,152.11,152.02,27.14175611]
[1740411071273,65.65111954,152.04,152.02,27.14175611]
[1740411071567,65.65111954,152.03,152.02,27.14175611]
[1740411072472,65.65111954,152.03,152.01,0.04952448]
[1740411072671,65.65111954,152.02,152.01,0.04952448]
[1740411073167,65.65111954,152.02,151.9,172.18]
[1740411073367,65.65111954,151.96,151.9,172.18]
[1740411073564,65.65111954,151.97,151.9,172.18]
[1740411073966,13.44,152.03,151.9,172.18]
[1740411074169,65.65111954,151.99,151.9,172.18]
[1740411074361,0.04933384,151.98,151.95,0.0503317]
[1740411074567,191.0,152.08,151.95,0.0503317]
[1740411074770,65.65111954,152.05,151.95,0.0503317]
[1740411075066,65.65111954,152.05,151.94,6.581]
[1740411075267,65.65111954,152.03,151.91,20.976]
[1740411075462,65.65111954,152.01,151.91,7.576]
[1740411075861,0.04902784,151.98,151.94,0.04706844]
[1740411076070,65.65111954,152.03,151.93,6.5814]
[1740411076370,0.04557768,151.98,151.94,0.04585392]
[1740411076570,65.65111954,152.06,151.97,6.58]
[1740411076772,65.65111954,152.07,151.98,3.7695]
[1740411076965,65.65111954,152.06,151.98,3.7695]
[1740411077163,13.4,152.18,151.98,3.7695]
[1740411077367,65.65111954,152.14,151.98,3.7695]
[1740411077564,191.0,152.3,151.98,195.7695]
[1740411077770,65.65111954,152.19,151.99,2.52433357]
[1740411077965,65.65111954,152.19,152.0,2.52383656]
[1740411078170,191.0,152.28,152.01,20.96570291]
[1740411078470,65.65111954,152.21,152.03,19.65]
[1740411078777,65.65111954,152.23,152.04,14.7154433]
[1740411078966,8.981e-05,152.14,152.1,0.04716809]
[1740411079167,65.65111954,152.26,152.1,192.0]
[1740411079374,65.65111954,152.29,152.11,23.6119]
[1740411079573,65.65111954,152.29,152.11,215.6119]
[1740411079776,3.7855,152.34,152.13,19.65]
[1740411079967,3.7855,152.34,152.14,13.42]
[1740411080167,0.04675687,152.25,152.22,0.04799825]
[1740411080365,65.65111954,152.27,152.15,172.16]
[1740411080570,3.7855,152.34,152.15,172.16]
[1740411080870,0.05033129,152.25,152.22,0.04218113]
[1740411081067,65.65111954,152.21,152.15,172.16]
[1740411081275,65.65111954,152.21,152.15,178.7322]
[1740411081469,13.4,152.27,152.16,0.04236361]
[1740411081663,0.04737605,152.2,152.16,0.04236361]
[1740411081868,0.04737605,152.2,152.15,172.16]
[1740411082170,0.04737605,152.2,152.16,0.04912196]
[1740411082962,13.36,152.35,152.16,0.04912196]
[1740411083167,65.65111954,152.28,152.15,172.16]
[1740411083364,65.65111954,152.28,152.22,6.5692]
[1740411083563,6.585,152.58,152.15,172.16]
[1740411083764,253.64890539,152.74,152.15,191.81]
[1740411083973,65.65111954,152.31,152.15,172.16]
[1740411084273,65.65111954,152.31,152.23,0.0495738]
[1740411084274,0.04357534,152.26,152.23,0.0495738]
[1740411084467,0.04357534,152.26,152.25,6.568]
[1740411084776,7.8359,152.4,152.23,0.0495738]
[1740411084972,65.65111954,152.38,152.23,211.6995738]
[1740411085172,65.65111954,152.39,152.24,7.6766]
[1740411085372,65.65111954,152.37,152.24,7.6766]
[1740411085772,0.04611212,152.32,152.29,0.04189252]
[1740411085972,65.65111954,152.33,152.24,7.6766]
[1740411086275,65.65111954,152.31,152.29,0.04231397]
[1740411086476,65.65111954,152.3,152.29,0.04231397]
[1740411086671,65.65111954,152.31,152.24,3.7311]
[1740411086871,9.08e-06,152.31,152.28,0.04933629]
[1740411087069,6.585,152.75,152.41,6.5607]
[1740411087070,172.04,152.67,152.41,6.5607]
[1740411087268,65.65111954,152.44,152.3,3.9455]
[1740411087473,65.65111954,152.46,152.3,195.9455]
[1740411087677,65.65111954,152.46,152.3,197.25869763]
[1740411087878,17.4631,152.53,152.31,1.31311141]
[1740411088069,65.65111954,152.4,152.31,1.31311141]
[1740411088278,0.04505248,152.44,152.4,0.04330763]
[1740411088479,65.65111954,152.43,152.3,3.9455]
[1740411088777,17.4631,152.53,152.3,3.9455]
[1740411088979,0.04271203,152.38,152.35,0.04940864]
[1740411089168,65.65111954,152.34,152.31,6.565]
[1740411089369,65.65111954,152.36,152.29,172.04]
[1740411089569,65.65111954,152.34,152.31,0.04495201]
[1740411089773,65.69999382,152.34,152.32,6.5646]
[1740411089971,65.65111954,152.33,152.31,0.04454567]
[1740411090372,0.04887428,152.34,152.33,6.5645]
[1740411091579,7.428e-05,152.34,152.33,6.5645]
[1740411093981,7.428e-05,152.34,152.33,7.77047225]
[1740411094890,7.428e-05,152.34,152.33,6.5645]
[1740411095079,7.428e-05,152.34,152.33,7.77043187]
[1740411095783,7.428e-05,152.34,152.33,199.77043187]
[1740411096382,4.122,152.52,152.51,6.5568]
[1740411096578,4.122,152.52,152.37,13.1253]
[1740411096778,55.67899382,152.5,152.37,192.0]
[1740411097086,8.71319382,152.52,152.38,1.20560407]
[1740411097283,8.71319382,152.53,152.43,0.04524047]
[1740411097484,8.71319382,152.55,152.43,171.88]
[1740411097681,0.03977254,152.5,152.46,0.04632815]
[1740411098389,8.71319382,152.48,152.46,0.04632815]
[1740411098779,8.71319382,152.47,152.46,0.04632815]
[1740411100183,0.03977254,152.5,152.46,0.04632815]
[1740411100386,8.71319382,152.49,152.46,0.04632815]
[1740411100682,8.71319382,152.47,152.46,0.04632815]
[1740411101682,0.03977254,152.5,152.46,0.04632815]
[1740411102779,3.9505,152.59,152.53,6.5556]
[1740411102977,8.71319382,152.56,152.47,4.1109]
[1740411103176,8.71319382,152.57,152.48,3.8026]
[1740411103378,3.9505,152.59,152.48,3.8026]
[1740411103379,8.71319382,152.58,152.48,3.8026]
[1740411103587,8.71319382,152.58,152.49,1.20473708]
[1740411103788,3.9505,152.59,152.49,1.20473708]
[1740411103978,194.954,152.66,152.52,0.04966592]
[1740411104287,8.71319382,152.57,152.48,3.8026]
[1740411104785,7.9571,152.65,152.51,0.04502077]
[1740411105091,8.71319382,152.57,152.56,0.04756464]
[1740411105483,8.71319382,152.57,152.48,3.8026]
[1740411105683,8.71319382,152.54,152.48,3.8026]
[1740411105886,8.71319382,152.55,152.48,3.8026]
[1740411106088,7.9571,152.65,152.48,3.8026]
[1740411106289,8.71319382,152.6,152.48,3.8026]